fUST/lending_fUST_20251011
["ID","MTS","AMOUNT","RATE_DAILY","PERIOD"]
[390768247,1760142643546,-190.397086,0.00029642,30]
[390768249,1760142643555,-190.397086,0.00029642,30]
[390768251,1760142643565,-190.397086,0.00029642,30]
[390768253,1760142643574,-190.397086,0.00029642,30]
[390768255,1760142643584,-151.0,0.00029642,30]
[390768257,1760142643594,-151.0,0.00029642,30]
[390768259,1760142643603,-151.0,0.00029642,30]
[390768261,1760142643614,-151.0,0.00029642,30]
[390768263,1760142643623,-151.0,0.00029642,30]
[390768265,1760142643633,-151.0,0.00029642,30]
[390768267,1760142643643,-151.0,0.00029642,30]
[390768269,1760142643656,-151.0,0.00029642,30]
[390768271,1760142643666,-151.0,0.00029642,30]
[390768273,1760142643677,-151.0,0.00029642,30]
[390768288,1760142643808,-247.115935,0.00029642,30]
[390768290,1760142643818,-151.0,0.00029642,2]
[390768292,1760142643827,-151.171017,0.00029642,2]
[390768294,1760142643836,-151.0,0.00029642,30]
[390768296,1760142643845,-151.0,0.00029642,30]
[390768298,1760142643855,-151.0,0.00029642,30]
[390768300,1760142643864,-151.0,0.00029642,30]
[390768302,1760142643875,-151.0,0.00029642,30]
[390768304,1760142643885,-152.401728,0.00029642,30]
[390768306,1760142643895,-151.0,0.00029642,30]
[390768308,1760142643907,-151.0,0.00029642,30]
[390768310,1760142643916,-151.0,0.00029642,30]
[390768312,1760142643926,-9848.011189,0.00029642,30]
[390768314,1760142643935,-177.432984,0.00029642,30]
[390768316,1760142643945,-9848.011189,0.00029642,30]
[390768318,1760142643955,-9848.011189,0.00029642,30]
[390768319,1760142643965,-9848.011189,0.00029642,30]
[390768322,1760142643977,-9848.011189,0.00029642,30]
[390768323,1760142643986,-9848.011189,0.00029642,30]
[390768326,1760142643996,-9848.011189,0.00029642,30]
[390768328,1760142644005,-151.0,0.00029642,30]
[390768330,1760142644015,-9848.011189,0.00029642,30]
[390768332,1760142644024,-151.0,0.00029642,30]
[390768334,1760142644033,-151.0,0.00029642,30]
[390768336,1760142644043,-9848.011189,0.00029642,30]
[390768338,1760142644053,-151.0,0.00029642,30]
[390768340,1760142644062,-9848.011189,0.00029642,30]
[390768342,1760142644071,-219.625217,0.00029642,30]
[390768344,1760142644081,-9848.011189,0.00029642,30]
[390768346,1760142644090,-9848.011189,0.00029642,30]
[390768348,1760142644100,-9848.011189,0.00029642,30]
[390768350,1760142644110,-9848.011189,0.00029642,30]
[390768352,1760142644120,-9848.011189,0.00029642,30]
[390768354,1760142644129,-9848.011189,0.00029642,30]
[390768356,1760142644138,-9848.011189,0.00029642,30]
[390768358,1760142644150,-9848.011189,0.00029642,30]
[390768360,1760142644160,-9848.011189,0.00029642,30]
[390768362,1760142644169,-9848.011185,0.00029642,30]
[390768364,1760142644178,-151.0,0.00029642,30]
[390768366,1760142644187,-151.0,0.00029642,30]
[390768368,1760142644197,-151.0,0.00029642,30]
[390768369,1760142644206,-151.0,0.00029642,30]
[390768372,1760142644217,-151.0,0.00029642,30]
[390768373,1760142644226,-151.0,0.00029642,30]
[390768376,1760142644235,-151.0,0.00029642,30]
[390768378,1760142644244,-151.0,0.00029642,30]
[390768380,1760142644254,-151.0,0.00029642,30]
[390768382,1760142644265,-151.0,0.00029642,30]
[390768383,1760142644276,-151.0,0.00029642,30]
[390768386,1760142644291,-151.0,0.00029642,30]
[390768387,1760142644304,-151.0,0.00029642,30]
[390768389,1760142644313,-151.0,0.00029642,30]
[390768391,1760142644322,-151.0,0.00029642,30]
[390768393,1760142644332,-416.0229,0.00029642,30]
[390768395,1760142644341,-151.0,0.00029642,30]
[390768397,1760142644351,-416.0229,0.00029642,30]
[390768399,1760142644360,-151.0,0.00029642,30]
[390768401,1760142644370,-416.0229,0.00029642,30]
[390768403,1760142644380,-151.0,0.00029642,30]
[390768405,1760142644389,-416.0229,0.00029642,30]
[390768407,1760142644401,-151.0,0.00029642,30]
[390768409,1760142644410,-250.915622,0.00029642,30]
[390768411,1760142644419,-416.0229,0.00029642,30]
[390768413,1760142644429,-416.0229,0.00029642,30]
[390768415,1760142644439,-416.0229,0.00029642,30]
[390768417,1760142644448,-416.0229,0.00029642,30]
[390768419,1760142644458,-416.0229,0.00029642,30]
[390768421,1760142644468,-416.0229,0.00029642,30]
[390768423,1760142644477,-416.0229,0.00029642,30]
[390768425,1760142644486,-416.0229,0.00029642,30]
[390768427,1760142644496,-416.0229,0.00029642,30]
[390768429,1760142644506,-416.0229,0.00029642,30]
[390768431,1760142644515,-416.0229,0.00029642,30]
[390768433,1760142644525,-416.0229,0.00029642,30]
[390768435,1760142644535,-416.0229,0.00029642,30]
[390768437,1760142644544,-416.0229,0.00029642,30]
[390768439,1760142644555,-416.0229,0.00029642,30]
[390768441,1760142644564,-416.0229,0.00029642,30]
[390768443,1760142644573,-2761.016348,0.00029642,30]
[390768445,1760142644583,-2761.016348,0.00029642,30]
[390768447,1760142644592,-2761.016348,0.00029642,30]
[390768449,1760142644601,-2761.016348,0.00029642,30]
[390768451,1760142644611,-151.0,0.00029642,30]
[390768453,1760142644621,-151.0,0.00029642,30]
[390768455,1760142644632,-2761.016348,0.00029642,30]
[390768457,1760142644641,-151.0,0.00029642,30]
[390768459,1760142644654,-2761.016348,0.00029642,30]
[390768462,1760142644664,-151.0,0.00029642,30]
[390768464,1760142644674,-2761.016348,0.00029642,30]
[390768466,1760142644683,-2761.016348,0.00029642,30]
[390768468,1760142644693,-2761.016348,0.00029642,30]
[390768470,1760142644702,-170.783074,0.00029642,7]
[390768471,1760142644711,-2761.016348,0.00029642,30]
[390768473,1760142644721,-2761.016348,0.00029642,30]
[390768476,1760142644731,-2761.016348,0.00029642,30]
[390768478,1760142644740,-2761.016348,0.00029642,30]
[390768480,1760142644749,-2761.016348,0.00029642,30]
[390768482,1760142644759,-2761.016348,0.00029642,30]
[390768484,1760142644768,-2761.016348,0.00029642,30]
[390768486,1760142644778,-2761.016348,0.00029642,30]
[390768488,1760142644787,-2761.016348,0.00029642,30]
[390768490,1760142644797,-2761.016348,0.00029642,30]
[390768492,1760142644807,-2761.016341,0.00029642,30]
[390768494,1760142644817,-151.0,0.00029642,30]
[390768496,1760142644826,-151.0,0.00029642,30]
[390768498,1760142644836,-151.0,0.00029642,30]
[390768500,1760142644845,-151.0,0.00029642,30]
[390768502,1760142644855,-2936.306008,0.00029642,30]
[390768504,1760142644866,-2936.306008,0.00029642,30]
[390768506,1760142644876,-2936.306008,0.00029642,30]
[390768508,1760142644885,-2936.306008,0.00029642,30]
[390768510,1760142644895,-2936.306008,0.00029642,30]
[390768512,1760142644907,-2936.306008,0.00029642,30]
[390768514,1760142644917,-2936.306008,0.00029642,30]
[390768516,1760142644926,-2936.306008,0.00029642,30]
[390768518,1760142644936,-1591598.9167183,0.00029642,20]
[390768556,1760142645291,-379.3281924,0.00029644,30]
[390768571,1760142645442,-153.0,0.00029644,30]
[390768573,1760142645453,-333.9773776,0.00029644,30]
[390768575,1760142645464,-200.0,0.0002965,120]
[390768577,1760142645473,-17501.21593369,0.00029668,20]
[390768580,1760142645488,-2936.306008,0.00029642,30]
[390768582,1760142645497,-666679.96257474,0.00029668,20]
[390768584,1760142645507,-725631.17460549,0.00029668,20]
[390768586,1760142645516,-2377046.31841695,0.00029668,20]
[390768796,1760142647492,-3e-08,0.00027475,2]
[390768923,1760142648758,-11433.23881534,0.00027475,2]
[390768925,1760142648767,-581.76118466,0.00028509,2]
[390768993,1760142649461,-2853.65462787,0.00028509,2]
[390768996,1760142649472,-390.19443505,0.00028509,2]
[390775949,1760142776344,2342.00652,0.00028767,120]
[390775960,1760142811398,200.0,0.00028524,120]
[390775981,1760143644128,-150.0,0.00019466,2]
[390775982,1760143644148,-150.0,0.00019586,2]
[390775983,1760143644169,-208.0,0.00019671,3]
[390775984,1760143644189,-179.41833743,0.000199,2]
[390775985,1760143644211,-41.87857191,0.00020186,2]
[390775986,1760143651609,200.0,0.00028353,120]
[390775988,1760143683274,456.24,0.00028767,120]
[390775989,1760143746070,-150.0,0.00019401,2]
[390775990,1760143746090,-15.50831511,0.00020186,2]
[390776011,1760143832872,-150.0,0.00019417,2]
[390776012,1760143832882,-150.0,0.00019417,2]
[390776013,1760143832892,-172.5,0.00020017,2]
[390776014,1760143832901,-195.0,0.00020617,2]
[390776015,1760143832911,-500.0,0.00021,2]
[390776016,1760143832920,-217.5,0.00021217,2]
[390776017,1760143832933,-150.0,0.00021236,2]
[390776019,1760143832942,-500.0,0.000215,3]
[390776021,1760143832951,-240.0,0.00021817,2]
[390776023,1760143832961,-500.0,0.00022,2]
[390776025,1760143832971,-500.0,0.000225,3]
[390776027,1760143832981,-722.29,0.00022999,2]
[390776029,1760143832990,-150.0,0.00023006,2]
[390776031,1760143832999,-200.0,0.00024658,15]
[390776033,1760143833009,-1121.35678841,0.00024658,2]
[390776035,1760143833019,-150.0,0.00024672,2]
[390776037,1760143833028,-1200.0,0.00026018,2]
[390776039,1760143833037,-300.0,0.00026019,2]
[390776041,1760143833046,-300.0,0.0002602,2]
[390776043,1760143833055,-300.0,0.0002602,2]
[390776045,1760143833064,-300.0,0.0002602,2]
[390776047,1760143833073,-1200.0,0.00026021,2]
[390776049,1760143833083,-150.0,0.00026434,2]
[390776051,1760143833093,-358.6991956,0.00026678,2]
[390776053,1760143833102,-514.343243,0.00027,14]
[390776055,1760143833111,-345.460046,0.00027,14]
[390776057,1760143833120,-1000.0,0.00027123,14]
[390776059,1760143833129,-614.73,0.00027123,14]
[390776061,1760143833138,-153.57003236,0.00027297,2]
[390776063,1760143833147,-500.0,0.00027397,60]
[390776065,1760143833156,-500.0,0.00027397,60]
[390776067,1760143833166,-500.0,0.00027397,60]
[390776069,1760143833178,-500.0,0.00027397,60]
[390776071,1760143833187,-500.0,0.00027397,60]
[390776073,1760143833196,-500.0,0.00027397,60]
[390776075,1760143833205,-500.0,0.00027397,60]
[390776077,1760143833214,-190.75,0.00027397,16]
[390776079,1760143833223,-1000.0,0.00027397,2]
[390776081,1760143833233,-500.0,0.00027397,60]
[390776083,1760143833242,-500.0,0.00027397,60]
[390776085,1760143833251,-500.0,0.00027397,60]
[390776087,1760143833259,-500.0,0.00027397,60]
[390776089,1760143833268,-500.0,0.00027397,60]
[390776091,1760143833277,-500.0,0.00027397,60]
[390776093,1760143833286,-500.0,0.00027397,60]
[390776095,1760143833295,-500.0,0.00027397,60]
[390776097,1760143833303,-535.11,0.00027397,60]
[390776099,1760143833312,-500.0,0.00027397,60]
[390776101,1760143833321,-1000.0,0.00027397,2]
[390776103,1760143833331,-2514.04,0.00027397,60]
[390776105,1760143833340,-2514.04,0.00027397,60]
[390776107,1760143833349,-2514.04,0.00027397,60]
[390776109,1760143833358,-2514.04,0.00027397,60]
[390776111,1760143833367,-2514.04,0.00027397,60]
[390776113,1760143833376,-2514.04,0.00027397,60]
[390776115,1760143833385,-2514.04,0.00027397,60]
[390776117,1760143833395,-2514.04,0.00027397,60]
[390776119,1760143833404,-2514.04,0.00027397,60]
[390776121,1760143833414,-2514.04,0.00027397,60]
[390776123,1760143833425,-2514.04,0.00027397,60]
[390776125,1760143833435,-2514.04,0.00027397,60]
[390776127,1760143833444,-2514.04,0.00027397,60]
[390776129,1760143833453,-2514.04,0.00027397,60]
[390776131,1760143833462,-2514.04,0.00027574,60]
[390776133,1760143833472,-2514.04,0.00027574,60]
[390776135,1760143833482,-514.343243,0.00027654,14]
[390776137,1760143833490,-345.460046,0.00027654,14]
[390776139,1760143833499,-514.343243,0.00027882,10]
[390776141,1760143833509,-345.460046,0.00027882,10]
[390776143,1760143833518,-602.16119796,0.00027906,12]
[390776348,1760143838427,-737.21068788,0.00027906,12]
[390776350,1760143838437,-1259.21610593,0.00027948,2]
[390776352,1760143838447,-2514.04,0.00027989,60]
[390776353,1760143838457,-2514.04,0.00027989,60]
[390776355,1760143838466,-153.57003234,0.00028052,2]
[390776357,1760143838476,-2514.04,0.00028073,60]
[390776359,1760143838486,-2514.04,0.00028093,60]
[390776361,1760143838496,-2514.04,0.00028093,60]
[390776363,1760143838506,-2514.04,0.00028093,60]
[390776365,1760143838516,-2514.04,0.00028093,60]
[390776367,1760143838525,-2514.09169871,0.00028093,60]
[390776370,1760143838535,-420.0,0.00028159,2]
[390776372,1760143838544,-168.0,0.00028193,2]
[390776373,1760143838554,-225.80485587,0.00028208,9]
[390776375,1760143838564,-150.0,0.0002822,2]
[390776377,1760143838575,-1200.0,0.00028283,2]
[390776379,1760143838584,-641.12827784,0.00028291,2]
[390776381,1760143838594,-514.343243,0.00028308,14]
[390776383,1760143838603,-345.460046,0.00028308,14]
[390776385,1760143838614,-641.12827784,0.00028391,2]
[390776387,1760143838623,-514.343243,0.00028395,10]
[390776388,1760143838632,-345.460046,0.00028395,10]
[390776389,1760143838641,-500.0,0.00028398,60]
[390776390,1760143838651,-1259.21610593,0.00028466,2]
[390776391,1760143838660,-152.0,0.00028468,7]
[390776392,1760143838670,-641.12827784,0.00028491,2]
[390776393,1760143838682,-153.53892715,0.00028509,2]
[390776394,1760143838692,-514.343243,0.00028582,2]
[390776395,1760143838703,-345.460046,0.00028582,2]
[390776396,1760143838713,-641.12827784,0.00028591,2]
[390776397,1760143838725,-641.12827784,0.00028691,2]
[390776398,1760143838734,-1259.21610593,0.00028703,2]
[390776399,1760143838744,-783.5617198,0.00028776,30]
[390776400,1760143838754,-641.12827784,0.00028791,2]
[390776401,1760143838764,-881.01849826,0.00028799,2]
[390776402,1760143838773,-162.0300095,0.00028849,30]
[390776403,1760143838783,-1259.21610593,0.00028891,2]
[390776404,1760143838794,-641.12827784,0.00028891,2]
[390776405,1760143838803,-514.343243,0.00028908,10]
[390776406,1760143838813,-345.460046,0.00028908,10]
[390776407,1760143838823,-514.343243,0.00028961,14]
[390776408,1760143838833,-345.460046,0.00028961,14]
[390776409,1760143838843,-641.12827784,0.00028991,2]
[390776410,1760143838852,-1259.21610593,0.00029085,2]
[390776411,1760143838863,-641.12827784,0.00029091,2]
[390776412,1760143838873,-153.0,0.00029151,30]
[390776413,1760143838883,-189.0695671,0.00029178,30]
[390776414,1760143838892,-200.0,0.00029238,120]
[390776415,1760143838903,-198.69568202,0.00029325,2]
[390776416,1760143838913,-500.0,0.00029355,60]
[390776417,1760143838922,-514.343243,0.00029356,2]
[390776418,1760143838935,-345.460046,0.00029356,2]
[390776419,1760143838945,-514.343243,0.00029361,7]
[390776420,1760143838954,-345.460046,0.00029361,7]
[390776421,1760143838964,-514.343243,0.00029421,10]
[390776422,1760143838973,-345.460046,0.00029421,10]
[390776423,1760143838983,-232930.738261,0.00029425,2]
[390776424,1760143838993,-8815.34594075,0.00029425,2]
[390776425,1760143839146,-7343.22,0.00029434,2]
[390776426,1760143839157,-227515.43361862,0.00029435,2]
[390776427,1760143839167,-198.69568202,0.00029444,2]
[390776428,1760143839178,-514.343243,0.00029446,7]
[390776429,1760143839188,-345.460046,0.00029446,7]
[390776430,1760143839198,-7239.31510121,0.00029448,2]
[390776431,1760143839208,-500.0,0.00029473,5]
[390776432,1760143839218,-486.48770865,0.00029473,5]
[390776433,1760143839228,-250.0,0.000295,10]
[390776434,1760143839238,-1500.0,0.000295,2]
[390776435,1760143839248,-7239.31510121,0.00029505,2]
[390776436,1760143839258,-514.343243,0.00029508,30]
[390776437,1760143839267,-345.460046,0.00029508,30]
[390776438,1760143839277,-514.343243,0.0002953,7]
[390776439,1760143839287,-345.460046,0.0002953,7]
[390776440,1760143839296,-1259.21610596,0.00029536,2]
[390776441,1760143839306,-500.0,0.0002954,60]
[390776442,1760143839315,-46586.1476522,0.00029541,2]
[390776443,1760143839325,-1763.06918815,0.00029541,2]
[390776444,1760143839334,-500.0,0.00029549,2]
[390776445,1760143839343,-500.0,0.00029549,2]
[390776446,1760143839352,-170.30467794,0.00029549,2]
[390776447,1760143839362,-500.0,0.00029549,2]
[390776448,1760143839371,-500.0,0.00029549,2]
[390776449,1760143839380,-500.0,0.00029549,2]
[390776450,1760143839389,-500.0,0.00029549,2]
[390776451,1760143839398,-500.0,0.00029549,2]
[390776452,1760143839407,-500.0,0.00029549,2]
[390776453,1760143839416,-500.0,0.00029549,2]
[390776454,1760143839425,-500.0,0.00029549,2]
[390776455,1760143839436,-500.0,0.00029549,2]
[390776456,1760143839446,-500.0,0.00029549,2]
[390776457,1760143839455,-500.0,0.00029549,2]
[390776458,1760143839464,-500.0,0.00029549,2]
[390776459,1760143839474,-500.0,0.00029549,2]
[390776460,1760143839484,-500.0,0.00029549,2]
[390776461,1760143839493,-500.0,0.00029549,2]
[390776462,1760143839502,-500.0,0.00029549,2]
[390776463,1760143839511,-500.0,0.00029549,2]
[390776464,1760143839520,-500.0,0.00029549,2]
[390776465,1760143839530,-614.76277521,0.00029549,2]
[390776466,1760143839539,-500.0,0.00029549,2]
[390776467,1760143839548,-500.0,0.00029549,2]
[390776468,1760143839557,-500.0,0.00029549,2]
[390776469,1760143839566,-500.0,0.00029549,2]
[390776470,1760143839575,-500.0,0.00029549,2]
[390776471,1760143839586,-500.0,0.00029549,2]
[390776472,1760143839595,-450.0,0.00029549,2]
[390776473,1760143839604,-275.72606897,0.00029549,2]
[390776474,1760143839614,-411.32134252,0.00029549,2]
[390776475,1760143839623,-500.0,0.00029549,2]
[390776476,1760143839633,-500.0,0.00029549,2]
[390776477,1760143839643,-500.0,0.00029549,2]
[390776478,1760143839652,-500.0,0.00029549,2]
[390776479,1760143839662,-162.02446677,0.00029549,2]
[390776480,1760143839671,-500.0,0.00029549,2]
[390776481,1760143839683,-500.0,0.00029549,2]
[390776482,1760143839693,-500.0,0.00029549,2]
[390776483,1760143839707,-264.03395439,0.0002955,60]
[390776484,1760143839716,-46586.1476522,0.0002955,2]
[390776485,1760143839726,-1763.06918815,0.0002955,2]
[390776486,1760143839735,-588.16879125,0.00029552,2]
[390776487,1760143839745,-14104.5535052,0.00029552,2]
[390776488,1760143839755,-514.343243,0.00029554,30]
[390776489,1760143839765,-345.460046,0.00029554,30]
[390776490,1760143839774,-1763.06918815,0.0002956,2]
[390776491,1760143839784,-294.13439562,0.0002956,2]
[390776492,1760143839793,-7239.31510121,0.00029562,2]
[390776493,1760143839803,-24732.95609036,0.00029562,2]
[390776494,1760143839812,-198.69568202,0.00029562,2]
[390776495,1760143839822,-500.0,0.00029562,5]
[390776496,1760143839831,-500.0,0.00029562,10]
[390776497,1760143839840,-1069.6776653,0.00029562,30]
[390776498,1760143839850,-131838.97423205,0.00029562,7]
[390776499,1760143839864,-220631.05976795,0.00029562,7]
[390776500,1760143839874,-294.13439562,0.00029569,2]
[390776501,1760143839883,-500.0,0.00029573,5]
[390776502,1760143839893,-501.5146544,0.00029573,5]
[390776503,1760143839902,-500.0,0.00029573,5]
[390776504,1760143839911,-500.0,0.00029573,5]
[390776505,1760143839920,-294.13439562,0.00029577,2]
[390776506,1760143839932,-294.13439562,0.00029586,2]
[390776507,1760143839941,-294.13439562,0.00029594,2]
[390776508,1760143839951,-151.0,0.000296,16]
[390776509,1760143839960,-151.0,0.000296,15]
[390776510,1760143839970,-151.0,0.000296,16]
[390776511,1760143839979,-151.0,0.000296,17]
[390776512,1760143839989,-151.0,0.000296,10]
[390776513,1760143839998,-151.0,0.000296,15]
[390776514,1760143840007,-151.0,0.000296,12]
[390776515,1760143840016,-151.0,0.000296,11]
[390776516,1760143840026,-151.0,0.000296,20]
[390776517,1760143840035,-514.343243,0.000296,30]
[390776518,1760143840044,-345.460046,0.000296,30]
[390776519,1760143840054,-250.0,0.000296,10]
[390776520,1760143840063,-294.13439562,0.00029602,2]
[390776521,1760143840072,-294.13439562,0.00029611,2]
[390776522,1760143840081,-514.343243,0.00029615,7]
[390776524,1760143840091,-514.343243,0.00029615,14]
[390776525,1760143840100,-345.460046,0.00029615,7]
[390776526,1760143840109,-345.460046,0.00029615,14]
[390776528,1760143840118,-294.13439562,0.00029619,2]
[390776529,1760143840127,-1763.06918815,0.00029625,2]
[390776530,1760143840136,-294.13439562,0.00029628,2]
[390776531,1760143840145,-1763.06918815,0.00029635,2]
[390776532,1760143840155,-294.13439562,0.00029636,2]
[390776533,1760143840164,-1763.06918815,0.0002964,2]
[390776534,1760143840173,-1763.06918815,0.00029641,2]
[390776535,1760143840185,-200.0,0.00029641,10]
[390776536,1760143840195,-13023.20306561,0.00029642,28]
[390776537,1760143840204,-294.13439562,0.00029644,2]
[390776538,1760143840213,-514.343243,0.00029647,30]
[390776539,1760143840222,-345.460046,0.00029647,30]
[390776540,1760143840231,-151.0,0.0002965,2]
[390776541,1760143840240,-151.0,0.0002965,2]
[390776543,1760143840249,-151.0,0.0002965,2]
[390776545,1760143840259,-151.0,0.0002965,2]
[390776546,1760143840268,-151.0,0.0002965,2]
[390776547,1760143840278,-151.0,0.0002965,2]
[390776548,1760143840287,-151.0,0.0002965,2]
[390776549,1760143840297,-151.0,0.0002965,2]
[390776550,1760143840306,-151.0,0.0002965,2]
[390776551,1760143840315,-151.0,0.0002965,2]
[390776552,1760143840325,-294.13439562,0.00029653,2]
[390776553,1760143840335,-46370.7261125,0.00029655,2]
[390776554,1760143840344,-1427.1663819,0.00029655,2]
[390776555,1760143840355,-31502.1146107,0.00029655,2]
[390776556,1760143840364,-1683.8805874,0.00029655,2]
[390776557,1760143840374,-151.0,0.00029661,30]
[390776558,1760143840383,-151.0,0.00029661,30]
[390776559,1760143840392,-151.0,0.00029661,30]
[390776560,1760143840402,-151.0,0.00029661,30]
[390776561,1760143840412,-151.0,0.00029661,30]
[390776562,1760143840422,-151.0,0.00029661,30]
[390776563,1760143840434,-151.0,0.00029661,30]
[390776564,1760143840443,-151.0,0.00029661,30]
[390776565,1760143840453,-151.0,0.00029661,30]
[390776566,1760143840463,-151.0,0.00029661,30]
[390776567,1760143840472,-151.0,0.00029661,30]
[390776568,1760143840483,-151.0,0.00029661,30]
[390776569,1760143840492,-151.0,0.00029661,30]
[390776570,1760143840502,-151.0,0.00029661,30]
[390776571,1760143840511,-250.44272072,0.00029661,30]
[390776573,1760143840521,-151.0,0.00029661,30]
[390776575,1760143840530,-153.732048,0.00029661,30]
[390776577,1760143840540,-151.0,0.00029661,30]
[390776578,1760143840550,-151.0,0.00029661,30]
[390776579,1760143840559,-151.0,0.00029661,30]
[390776580,1760143840568,-151.0,0.00029661,30]
[390776581,1760143840577,-151.0,0.00029661,30]
[390776582,1760143840587,-151.0,0.00029661,30]
[390776583,1760143840596,-151.0,0.00029661,30]
[390776584,1760143840605,-151.0,0.00029661,30]
[390776585,1760143840615,-151.0,0.00029661,30]
[390776586,1760143840624,-151.0,0.00029661,30]
[390776587,1760143840633,-151.0,0.00029661,30]
[390776588,1760143840642,-151.0,0.00029661,30]
[390776589,1760143840652,-151.0,0.00029661,30]
[390776590,1760143840661,-151.0,0.00029661,30]
[390776591,1760143840671,-151.0,0.00029661,30]
[390776592,1760143840680,-151.0,0.00029661,30]
[390776593,1760143840689,-151.0,0.00029661,30]
[390776594,1760143840699,-257.766058,0.00029661,30]
[390776595,1760143840709,-151.0,0.00029661,30]
[390776596,1760143840721,-151.891379,0.00029661,30]
[390776597,1760143840730,-151.0,0.00029661,30]
[390776598,1760143840740,-151.907832,0.00029661,30]
[390776599,1760143840750,-151.445284,0.00029661,30]
[390776600,1760143840759,-301.99999998,0.00029661,30]
[390776601,1760143840768,-151.0,0.00029661,30]
[390776602,1760143840778,-151.0,0.00029661,30]
[390776603,1760143840789,-151.0,0.00029661,30]
[390776604,1760143840799,-151.0,0.00029661,30]
[390776605,1760143840808,-151.0,0.00029661,30]
[390776606,1760143840817,-151.0,0.00029661,30]
[390776607,1760143840826,-399.671478,0.00029661,30]
[390776608,1760143840835,-151.0,0.00029661,30]
[390776609,1760143840845,-399.671478,0.00029661,30]
[390776610,1760143840855,-151.0,0.00029661,30]
[390776611,1760143840864,-399.671478,0.00029661,30]
[390776612,1760143840874,-151.0,0.00029661,30]
[390776613,1760143840883,-399.671478,0.00029661,30]
[390776614,1760143840893,-151.0,0.00029661,30]
[390776615,1760143840903,-399.671478,0.00029661,30]
[390776616,1760143840913,-399.671478,0.00029661,30]
[390776617,1760143840922,-399.671478,0.00029661,30]
[390776618,1760143840934,-399.671478,0.00029661,30]
[390776619,1760143840943,-399.671478,0.00029661,30]
[390776620,1760143840952,-399.671478,0.00029661,30]
[390776621,1760143840961,-399.671478,0.00029661,30]
[390776622,1760143840971,-399.671478,0.00029661,30]
[390776623,1760143840981,-399.671478,0.00029661,30]
[390776624,1760143840990,-399.671478,0.00029661,30]
[390776625,1760143841000,-399.671478,0.00029661,30]
[390776626,1760143841008,-399.671478,0.00029661,30]
[390776627,1760143841018,-399.671478,0.00029661,30]
[390776628,1760143841028,-399.671478,0.00029661,30]
[390776629,1760143841037,-399.671478,0.00029661,30]
[390776630,1760143841046,-399.671469,0.00029661,30]
[390776631,1760143841055,-775.066392,0.00029661,30]
[390776632,1760143841064,-775.066392,0.00029661,30]
[390776633,1760143841077,-775.066392,0.00029661,30]
[390776634,1760143841087,-775.066392,0.00029661,30]
[390776635,1760143841096,-775.066392,0.00029661,30]
[390776636,1760143841106,-151.0,0.00029661,30]
[390776637,1760143841115,-775.066392,0.00029661,30]
[390776638,1760143841124,-151.0,0.00029661,30]
[390776639,1760143841134,-775.066392,0.00029661,30]
[390776640,1760143841143,-151.0,0.00029661,30]
[390776641,1760143841154,-775.066392,0.00029661,30]
[390776642,1760143841163,-151.0,0.00029661,30]
[390776643,1760143841173,-775.066392,0.00029661,30]
[390776644,1760143841184,-248.335424,0.00029661,30]
[390776645,1760143841194,-775.066392,0.00029661,30]
[390776646,1760143841203,-775.066392,0.00029661,30]
[390776647,1760143841212,-775.066392,0.00029661,30]
[390776648,1760143841221,-775.066392,0.00029661,30]